bitfinex/quotes_SOLUSD_20251201
["timestamp","ask_amount","ask_price","bid_price","bid_amount"]
[1764566510270,0.2,126.2,126.19,12.61188484]
[1764566510448,0.2,126.2,126.19,13.30188484]
[1764566510973,0.2,126.2,126.19,21.22644304]
[1764566512356,0.2,126.2,126.19,23.52644304]
[1764566514673,0.2,126.2,126.19,14.91188484]
[1764566514983,0.2,126.2,126.19,23.52644304]
[1764566518393,0.2,126.2,126.19,27.04644304]
[1764566520675,0.2,126.2,126.19,35.85638796]
[1764566520885,0.2,126.24,126.23,16.308864]
[1764566521064,0.2,126.24,126.23,28.92074884]
[1764566521266,0.2,126.24,126.23,29.62074884]
[1764566521988,0.2,126.24,126.23,37.54279589]
[1764566522356,0.2,126.24,126.23,36.84279589]
[1764566522557,0.2,126.24,126.23,21.23393189]
[1764566525383,0.2,126.26,126.25,16.308864]
[1764566525686,0.2,126.26,126.25,32.42074884]
[1764566525853,0.2,126.26,126.25,35.42074884]
[1764566526256,0.2,126.26,126.25,31.92074884]
[1764566526457,0.2,126.26,126.25,6.82207781]
[1764566526989,0.2,126.26,126.25,14.74286988]
[1764566527659,0.2,126.26,126.25,15.44286988]
[1764566528369,0.2,126.26,126.25,13.81435218]
[1764566528571,0.2,126.26,126.25,13.11435218]
[1764566529088,0.2,126.26,126.25,13.81435218]
[1764566529799,0.2,126.26,126.25,29.42321618]
[1764566530472,0.2,126.26,126.25,2.3]
[1764566530797,0.92,126.26,126.25,2.3]
[1764566531180,8.84016473,126.26,126.25,2.3]
[1764566532195,0.92,126.26,126.25,2.3]
[1764566533186,0.92,126.26,126.24,2.89356011]
[1764566533501,0.92,126.26,126.25,2.89356011]
[1764566533798,0.92,126.26,126.24,10.81488376]
[1764566535195,0.92,126.26,126.24,2.89356011]
[1764566536794,0.2,126.26,126.24,2.89356011]
[1764566536997,0.72,126.25,126.23,2.89356011]
[1764566537699,0.72,126.25,126.22,19.90242411]
[1764566538410,0.72,126.25,126.22,19.20242411]
[1764566538411,8.64097228,126.25,126.22,19.20242411]
[1764566538896,0.72,126.25,126.22,19.20242411]
[1764566539094,8.64087375,126.25,126.22,19.20242411]
[1764566539509,2.89356011,126.24,126.21,2.3]
[1764566539804,3.61356011,126.24,126.21,2.3]
[1764566539999,0.72,126.23,126.21,2.3]
[1764566540575,8.64213058,126.23,126.21,2.3]
[1764566541609,0.72,126.22,126.21,2.3]
[1764566541788,8.64079207,126.25,126.21,5.89356011]
[1764566541982,12.14079207,126.25,126.22,2.89356011]
[1764566542182,0.72,126.24,126.22,2.89356011]
[1764566542785,11.42079207,126.25,126.23,3.59356011]
[1764566542786,7.92079207,126.25,126.23,3.59356011]
[1764566543003,7.92079207,126.25,126.23,2.89356011]
[1764566543308,7.92079207,126.25,126.22,3.59356011]
[1764566543511,8.64079207,126.25,126.22,3.59356011]
[1764566543689,8.64079207,126.25,126.23,2.89356011]
[1764566543890,8.64079207,126.25,126.22,3.59356011]
[1764566545000,8.64079207,126.25,126.22,11.51620337]
[1764566546088,8.64079207,126.25,126.22,8.62264326]
[1764566546282,8.64079207,126.25,126.22,11.51620337]
[1764566546715,8.64079207,126.25,126.22,8.62264326]
[1764566546902,0.2,126.26,126.24,2.89356011]
[1764566547302,0.9,126.26,126.24,2.89356011]
[1764566547493,0.2,126.26,126.24,3.55356011]
[1764566548615,0.2,126.26,126.25,2.89356011]
[1764566549218,0.2,126.26,126.25,11.47435218]
[1764566550700,0.2,126.26,126.25,10.81435218]
[1764566551298,0.2,126.26,126.25,11.53435218]
[1764566552803,0.2,126.26,126.25,24.94965607]
[1764566553002,0.2,126.26,126.25,27.12321618]
[1764566553416,0.2,126.26,126.25,27.84321618]
[1764566557335,0.2,126.26,126.25,27.12321618]
[1764566557511,0.2,126.26,126.25,27.84321618]
[1764566557710,0.2,126.26,126.25,24.94965607]
[1764566557911,0.2,126.26,126.25,27.84321618]
[1764566558638,0.2,126.26,126.25,27.12321618]
[1764566558834,0.2,126.26,126.25,10.81435218]
[1764566559734,8.11786366,126.3,126.26,0.72]
[1764566559910,0.92,126.3,126.27,2.89356011]
[1764566560809,0.2,126.3,126.27,11.53271877]
[1764566561215,0.92,126.3,126.27,10.81271877]
[1764566561413,0.2,126.3,126.27,7.91915866]
[1764566561620,0.72,126.29,126.27,7.91915866]
[1764566562125,0.72,126.29,126.26,2.3]
[1764566562336,0.72,126.29,126.25,2.89356011]
[1764566562541,3.61356011,126.29,126.24,2.89356011]
[1764566562701,0.72,126.28,126.24,8.64141951]
[1764566562900,0.72,126.28,126.24,11.53497962]
[1764566563318,0.72,126.28,126.24,10.81497962]
[1764566563629,0.72,126.28,126.24,11.53497962]
[1764566564217,0.72,126.28,126.25,2.89356011]
[1764566564416,0.72,126.28,126.24,10.81497962]
[1764566564629,7.91861125,126.29,126.25,3.61356011]
[1764566564930,7.91861125,126.29,126.27,2.89356011]
[1764566565315,8.63861125,126.29,126.27,2.89356011]
[1764566565733,0.2,126.3,126.28,2.89356011]
[1764566566321,0.2,126.3,126.29,2.89356011]
[1764566566528,0.2,126.3,126.29,3.61356011]
[1764566566725,0.2,126.3,126.29,27.84070742]
[1764566566920,0.2,126.3,126.29,27.12070742]
[1764566568426,0.2,126.3,126.29,10.81184342]
[1764566569039,0.2,126.3,126.29,7.91828331]
[1764566569239,0.2,126.3,126.29,10.81184342]
[1764566569825,0.2,126.3,126.29,11.53184342]
[1764566578028,0.2,126.3,126.29,27.84070742]
[1764566580523,0.2,126.3,126.29,39.41494786]
[1764566580730,0.2,126.3,126.29,41.71494786]
[1764566581147,0.2,126.3,126.29,30.14070742]
[1764566583839,0.2,126.3,126.29,41.71494786]
[1764566584151,0.2,126.3,126.29,29.42070742]
[1764566584352,0.2,126.3,126.29,26.52714731]
[1764566584527,0.2,126.3,126.29,29.42070742]
[1764566584850,0.2,126.3,126.29,30.10070742]
[1764566585251,0.2,126.3,126.29,41.67494786]
[1764566586045,0.2,126.3,126.29,29.42070742]
[1764566586629,0.2,126.3,126.29,30.10070742]
[1764566588334,0.2,126.3,126.29,31.7254938]
[1764566588855,0.2,126.3,126.29,19.93497629]
[1764566590826,0.2,126.3,126.29,31.7254938]
[1764566591148,0.2,126.3,126.29,31.0454938]
[1764566592654,0.2,126.3,126.29,31.7254938]
[1764566593961,0.89,126.3,126.29,18.608864]
[1764566594265,0.89,126.3,126.29,4.51834649]
[1764566595251,0.2,126.3,126.29,4.51834649]
[1764566595446,0.89,126.3,126.28,12.43664739]
[1764566595660,8.11801117,126.3,126.27,20.82721049]
[1764566595846,0.69,126.29,126.27,20.82721049]
[1764566596753,0.69,126.29,126.27,4.51834649]
[1764566596963,0.69,126.29,126.27,12.43785748]
[1764566597456,0.69,126.29,126.27,4.51834649]
[1764566597645,0.69,126.29,126.26,12.43831118]
[1764566599356,0.69,126.29,126.27,4.51834649]
[1764566599549,8.60852463,126.29,126.26,4.51834649]
[1764566599948,0.69,126.28,126.26,4.51834649]
[1764566600639,0.69,126.28,126.26,12.43850622]
[1764566600850,0.69,126.28,126.27,4.51834649]
[1764566603364,0.69,126.28,126.27,12.43788398]
[1764566603962,0.69,126.28,126.27,7.91953749]
[1764566604360,0.69,126.28,126.27,12.43788398]
[1764566604554,0.69,126.28,126.27,14.73788398]
[1764566604959,0.69,126.28,126.27,10.21953749]
[1764566605342,0.85,126.3,126.27,14.73788398]
[1764566605744,0.65,126.29,126.27,14.73788398]
[1764566606142,0.65,126.29,126.27,10.21953749]
[1764566606964,4.51834649,126.28,126.24,6.81834649]
[1764566607148,4.51834649,126.26,126.22,4.51834649]
[1764566607343,12.43865114,126.26,126.22,7.92228012]
[1764566607648,5.22834649,126.25,126.22,7.92228012]
[1764566608170,0.71,126.24,126.22,7.92228012]
[1764566609174,0.71,126.24,126.2,32.25108069]
[1764566609469,0.71,126.24,126.21,4.51834649]
[1764566609683,8.63030465,126.26,126.22,4.51834649]
[1764566609852,8.63030465,126.26,126.23,4.51834649]
[1764566610168,0.71,126.26,126.24,4.51834649]
[1764566610348,0.71,126.25,126.24,4.51834649]
[1764566611956,0.71,126.28,126.24,13.1596834]
[1764566612162,0.71,126.28,126.26,4.51834649]
[1764566612896,0.71,126.28,126.24,4.51834649]
[1764566613684,8.62935382,126.28,126.24,12.43973443]
[1764566613975,8.62935382,126.28,126.24,4.51834649]
[1764566614176,0.71,126.27,126.24,12.43976074]
[1764566615077,0.71,126.29,126.25,5.23834649]
[1764566615371,0.71,126.29,126.27,4.51834649]
[1764566617062,0.2,126.3,126.28,4.51834649]
[1764566617272,0.91,126.3,126.28,4.51834649]
[1764566618060,0.91,126.3,126.27,12.43777656]
[1764566618266,0.71,126.29,126.27,12.43777656]
[1764566619366,0.71,126.29,126.28,4.51834649]
[1764566621173,0.71,126.29,126.27,12.43745871]
[1764566623515,4.72834649,126.29,126.27,7.91911222]
[1764566623684,4.51834649,126.29,126.27,7.91911222]
[1764566623868,4.71834649,126.3,126.27,7.91911222]
[1764566624793,0.2,126.3,126.27,13.15745871]
[1764566624994,0.2,126.3,126.28,4.51834649]
[1764566625494,0.89,126.3,126.28,12.43701969]
[1764566625692,0.89,126.3,126.28,7.9186732]
[1764566627668,4.39,126.3,126.28,7.9186732]
[1764566628786,3.7,126.3,126.28,7.9186732]
[1764566629090,0.69,126.29,126.28,7.9186732]
[1764566629471,4.39,126.3,126.28,7.9186732]
[1764566632176,4.39,126.3,126.27,10.21923268]
[1764566632696,4.39,126.3,126.27,10.93923268]
[1764566632882,4.39,126.3,126.27,15.45757917]
[1764566633395,4.39,126.3,126.27,14.73757917]
[1764566633893,4.39,126.3,126.27,10.21923268]
[1764566636081,4.51834649,126.28,126.23,4.51834649]
[1764566636281,8.01834649,126.27,126.23,4.51834649]
[1764566636478,8.01834649,126.27,126.23,5.23834649]
[1764566636673,8.01834649,126.27,126.22,19.80606617]
[1764566636674,0.69,126.26,126.22,4.51834649]
[1764566636890,5.20834649,126.26,126.21,12.44164892]
[1764566637091,13.12868561,126.26,126.21,12.44164892]
[1764566637290,0.69,126.25,126.22,5.23834649]
[1764566638578,12.43868561,126.26,126.22,4.51834649]
[1764566638778,8.61033912,126.26,126.23,0.72]
[1764566639187,28.80461907,126.3,126.24,4.51834649]
[1764566639497,0.2,126.3,126.27,4.51834649]
[1764566639692,3.5,126.29,126.27,4.51834649]
[1764566639888,3.5,126.29,126.27,5.23834649]
[1764566641095,3.5,126.29,126.27,0.72]
[1764566641300,3.5,126.29,126.27,5.23834649]
[1764566641693,3.5,126.29,126.27,4.51834649]
[1764566641884,3.5,126.29,126.26,12.43799586]
[1764566642197,0.69,126.28,126.25,4.51834649]
[1764566643018,5.20834649,126.28,126.24,7.92094345]
[1764566643499,0.69,126.27,126.24,7.92094345]
[1764566643679,3.5,126.26,126.24,7.92094345]
[1764566644020,0.2,126.3,126.25,5.23834649]
[1764566644314,0.2,126.3,126.29,20.82721049]
[1764566644611,0.2,126.3,126.29,17.028864]
[1764566644812,0.2,126.3,126.26,68.04140026]
[1764566644982,0.89,126.3,126.26,44.02944057]
[1764566645307,0.89,126.3,126.27,5.23834649]
[1764566645993,0.89,126.3,126.27,0.72]
[1764566646186,0.89,126.3,126.27,13.15745377]
[1764566647202,0.69,126.29,126.27,7.91910728]
[1764566648201,5.40834649,126.3,126.27,7.91910728]
[1764566648787,4.71834649,126.3,126.27,7.91910728]
[1764566649006,4.51834649,126.28,126.23,41.35141071]
[1764566649213,4.51834649,126.27,126.23,25.04254671]
[1764566649501,4.51834649,126.27,126.23,20.52420022]
[1764566649718,5.20834649,126.26,126.23,7.92156834]
[1764566650499,3.5,126.27,126.23,2.89594853]
[1764566650706,3.5,126.27,126.24,3.61594853]
[1764566650986,3.5,126.28,126.25,10.8167406]
[1764566651186,3.5,126.28,126.25,11.5367406]
[1764566651801,3.5,126.28,126.25,8.64079207]
[1764566652003,4.19,126.28,126.25,11.5367406]
[1764566652211,0.69,126.28,126.25,11.5367406]
[1764566652414,0.69,126.28,126.26,2.89594853]
[1764566654213,0.69,126.28,126.25,10.8167406]
[1764566656414,4.19,126.29,126.26,2.89594853]
[1764566656607,4.19,126.29,126.26,0.72]
[1764566656811,4.19,126.29,126.26,3.61594853]
[1764566657013,4.19,126.29,126.26,0.72]
[1764566657198,4.19,126.29,126.28,16.308864]
[1764566658498,3.5,126.29,126.28,16.308864]
[1764566660922,11.41828331,126.29,126.27,2.89594853]
[1764566663912,7.91828331,126.29,126.27,2.89594853]
[1764566664114,11.41828331,126.29,126.27,2.89594853]
[1764566664327,7.91828331,126.29,126.27,3.61594853]
[1764566664513,11.41828331,126.29,126.27,3.61594853]
[1764566665526,11.41828331,126.29,126.27,2.89594853]
[1764566666032,11.41828331,126.29,126.27,3.54594853]
[1764566667106,0.2,126.3,126.28,3.54594853]
[1764566667322,0.2,126.3,126.29,19.20481253]
[1764566667626,0.2,126.3,126.29,31.43860665]
[1764566668127,0.2,126.3,126.29,19.85481253]
[1764566669128,0.2,126.3,126.29,27.77309584]
[1764566671428,0.2,126.3,126.29,39.35688996]
[1764566671727,0.2,126.32,126.29,61.45259825]
[1764566671929,0.2,126.32,126.31,2.89594853]
[1764566672429,0.2,126.32,126.31,3.54594853]
[1764566673203,0.2,126.32,126.31,5.84594853]
[1764566673418,0.2,126.32,126.31,17.26297806]
[1764566673626,0.2,126.34,126.33,16.308864]
[1764566673928,0.2,126.34,126.33,19.20481253]
[1764566674127,0.2,126.34,126.33,19.85481253]
[1764566675525,0.2,126.34,126.33,27.77058867]
[1764566677219,0.2,126.34,126.33,30.07058867]
[1764566678514,0.2,126.34,126.33,33.57058867]
[1764566680423,0.2,126.34,126.33,30.67464014]
[1764566680613,0.2,126.34,126.33,27.17464014]
[1764566680807,0.2,126.34,126.33,30.07058867]
[1764566681231,0.2,126.34,126.33,27.17464014]
[1764566681438,0.2,126.34,126.33,30.07058867]
[1764566684330,0.2,126.34,126.33,27.77058867]
[1764566685441,0.2,126.34,126.33,27.12058867]
[1764566687617,0.2,126.34,126.33,29.42058867]
[1764566689519,0.85,126.34,126.33,10.21577614]
[1764566689720,0.85,126.34,126.31,27.70907716]
[1764566689938,0.85,126.34,126.31,31.25502569]
[1764566690139,0.85,126.34,126.32,2.89594853]
[1764566690550,0.2,126.34,126.33,2.89594853]
[1764566690849,0.2,126.34,126.33,19.85481253]
[1764566691224,0.2,126.34,126.33,27.77058867]
[1764566693531,0.2,126.34,126.33,30.07058867]
[1764566694943,0.2,126.36,126.35,3.54594853]
[1764566695328,0.2,126.36,126.35,27.76933567]
[1764566698595,0.2,126.41,126.36,0.69]
[1764566698756,0.2,126.41,126.4,2.89594853]
[1764566699045,0.2,126.41,126.39,19.808864]
[1764566699253,0.2,126.41,126.4,2.89594853]
[1764566700127,0.9,126.41,126.4,2.89594853]
[1764566700647,0.9,126.41,126.4,10.80734093]
[1764566701144,0.9,126.41,126.4,7.9113924]
[1764566701352,0.9,126.41,126.4,19.20481253]
[1764566703064,0.9,126.41,126.38,19.78056574]
[1764566703245,0.7,126.4,126.38,22.67651427]
[1764566703557,0.7,126.4,126.38,19.78056574]
[1764566703762,0.7,126.4,126.38,7.91204272]
[1764566704359,0.7,126.4,126.38,10.80799125]
[1764566704734,0.7,126.4,126.38,2.89594853]
[1764566706848,0.7,126.4,126.37,10.21327055]
[1764566707046,0.7,126.4,126.37,7.91327055]
[1764566707357,0.7,126.4,126.38,2.89594853]
[1764566708154,0.7,126.4,126.39,2.89594853]
[1764566708444,0.7,126.4,126.39,10.80796688]
[1764566708841,0.2,126.41,126.39,11.49796688]
[1764566709049,0.9,126.41,126.4,2.89594853]
[1764566709453,0.2,126.41,126.4,2.89594853]
[1764566709653,0.2,126.41,126.4,3.58594853]
[1764566710369,0.2,126.41,126.4,8.6013924]
[1764566710536,0.2,126.41,126.4,13.111563]
[1764566710963,0.2,126.41,126.4,12.421563]
[1764566711170,0.9,126.41,126.39,28.73096901]
[1764566711867,0.2,126.41,126.39,4.5101706]
[1764566712047,0.2,126.41,126.38,12.42278085]
[1764566712048,0.7,126.4,126.38,12.42278085]
[1764566712250,0.7,126.4,126.39,12.42218895]
[1764566713468,0.2,126.41,126.39,12.42218895]
[1764566713672,0.9,126.41,126.39,12.42218895]
[1764566714049,0.9,126.41,126.39,4.5101706]
[1764566715351,0.9,126.41,126.39,12.42218775]
[1764566715546,0.7,126.4,126.39,4.5101706]
[1764566715769,0.7,126.4,126.38,4.5101706]
[1764566716266,0.7,126.4,126.37,4.5101706]
[1764566716452,5.2101706,126.4,126.35,28.7334571]
[1764566716652,5.2101706,126.4,126.35,29.4234571]
[1764566716853,0.7,126.39,126.36,4.5101706]
[1764566717466,8.6121344,126.39,126.36,4.5101706]
[1764566717872,0.7,126.38,126.36,4.5101706]
[1764566718070,0.7,126.38,126.36,12.42396911]
[1764566721100,0.2,126.41,126.37,8.7001706]
[1764566721251,0.2,126.41,126.4,4.5101706]
[1764566721449,0.2,126.41,126.4,28.730427]
[1764566721690,0.2,126.41,126.4,28.4102564]
[1764566721971,0.2,126.41,126.4,32.920427]
[1764566722351,0.2,126.41,126.4,24.9102564]
[1764566722564,0.2,126.41,126.4,28.730427]
[1764566723173,0.2,126.41,126.4,29.420427]
[1764566723967,0.2,126.41,126.4,32.920427]
[1764566732271,0.2,126.41,126.4,35.220427]
[1764566741783,0.2,126.42,126.41,9.0203412]
[1764566741980,0.2,126.42,126.41,9.7103412]
[1764566742178,0.2,126.42,126.41,5.2001706]
[1764566742367,0.2,126.42,126.41,0.69]
[1764566742564,0.2,126.42,126.41,5.2001706]
[1764566743075,0.2,126.42,126.41,13.11093715]
[1764566745268,1e-08,126.42,126.41,28.73105267]
[1764566745471,0.2,126.46,126.45,16.308864]
[1764566745780,0.2,126.46,126.45,20.8190346]
[1764566745983,0.2,126.46,126.45,21.5090346]
[1764566747569,0.2,126.46,126.45,29.41729873]
[1764566748913,0.2,126.47,126.45,51.48795907]
[1764566749083,0.2,126.47,126.46,8.7001706]
[1764566749714,0.2,126.47,126.46,32.22792489]
[1764566749715,1e-08,126.47,126.46,32.22792489]
[1764566750196,0.2,126.48,126.46,51.99702183]
[1764566750388,0.2,126.48,126.47,9.7103412]
[1764566751588,0.2,126.48,126.47,17.61735472]
[1764566752174,0.77,126.55,126.5,16.308864]
[1764566752382,0.77,126.54,126.53,4.5101706]
[1764566753074,0.77,126.54,126.52,4.5101706]
[1764566753797,0.77,126.54,126.53,4.5101706]
[1764566754292,15.78121587,126.57,126.53,4.5101706]
[1764566754501,0.2,126.6,126.55,16.308864]
[1764566754811,4.5101706,126.59,126.55,16.308864]
[1764566754991,4.5101706,126.57,126.52,7.90346356]
[1764566755180,16.308864,126.59,126.51,24.21298794]
[1764566755181,4.5101706,126.56,126.51,24.21298794]
[1764566755386,8.80994492,126.57,126.51,16.308864]
[1764566755689,4.5101706,126.56,126.51,20.8190346]
[1764566755889,7.90186635,126.56,126.51,24.21337092]
[1764566756089,0.62,126.55,126.51,28.72354152]
[1764566757378,0.62,126.55,126.49,23.95356303]
[1764566757379,4.5101706,126.54,126.49,7.90541922]
[1764566757585,4.5101706,126.54,126.5,4.5101706]
[1764566757792,0.62,126.53,126.5,4.5101706]
[1764566758591,8.52235547,126.55,126.51,4.5101706]
[1764566758790,0.62,126.54,126.51,4.5101706]
[1764566759284,0.62,126.54,126.51,12.41455593]
[1764566759798,8.52271342,126.54,126.5,12.41508307]
[1764566759986,13.03288402,126.54,126.49,20.8190346]
[1764566760191,0.62,126.53,126.5,4.5101706]
[1764566761504,13.03354378,126.53,126.49,28.72460047]
[1764566762004,0.62,126.52,126.5,4.5101706]
[1764566762205,5.1301706,126.52,126.47,24.21569226]
[1764566762382,5.1301706,126.52,126.48,4.5101706]
[1764566762583,0.62,126.51,126.47,28.72586286]
[1764566763099,0.62,126.51,126.48,4.5101706]
[1764566763405,8.52456173,126.51,126.48,4.5101706]
[1764566763915,0.62,126.5,126.47,7.90682826]
[1764566764203,0.62,126.5,126.47,12.41699886]
[1764566764910,8.52524552,126.5,126.47,4.5101706]
[1764566765110,8.52524552,126.5,126.48,4.5101706]
[1764566765413,0.62,126.49,126.47,4.5101706]
[1764566765783,7.90524552,126.5,126.47,4.5101706]
[1764566766128,8.52524552,126.5,126.47,4.5101706]
[1764566767404,8.52524552,126.5,126.48,4.5101706]
[1764566768484,8.52524552,126.5,126.47,4.5101706]
[1764566768712,0.62,126.49,126.46,26.51626386]
[1764566769012,0.62,126.49,126.46,23.1190346]
[1764566769309,8.6301706,126.49,126.45,12.41833802]
[1764566769920,0.62,126.48,126.45,12.41833802]
[1764566770122,0.62,126.48,126.46,4.5101706]
[1764566770411,0.62,126.48,126.44,26.51750486]
[1764566770718,8.52670162,126.48,126.45,4.5101706]
[1764566772510,8.52670162,126.48,126.45,2.8854471]
[1764566773099,0.62,126.48,126.45,2.8854471]
[1764566773499,0.62,126.48,126.47,2.8854471]
[1764566773694,0.62,126.48,126.46,2.8854471]
[1764566774216,8.52638901,126.48,126.46,2.8854471]
[1764566777722,7.90638901,126.48,126.45,2.8854471]
[1764566778022,0.62,126.47,126.45,2.8854471]
[1764566780000,8.52713557,126.47,126.45,2.8854471]
[1764566782733,8.52713557,126.47,126.44,0.71]
[1764566783023,4.12,126.46,126.43,10.91943627]
[1764566783223,3.5,126.47,126.45,2.8854471]
[1764566783408,3.5,126.47,126.46,3.5954471]
[1764566783611,31.17183265,126.49,126.46,3.5954471]
[1764566783826,31.17183265,126.49,126.47,2.8854471]
[1764566784228,31.17183265,126.49,126.46,0.71]
[1764566784425,12.02638709,126.49,126.47,2.8854471]
[1764566786146,3.5,126.49,126.47,11.45236883]
[1764566786300,3.0,126.49,126.47,11.45236883]
[1764566786712,3.0,126.49,126.47,10.79236883]
[1764566788126,3.0,126.49,126.47,11.45236883]
[1764566789127,3.0,126.49,126.47,10.79236883]
[1764566789609,3.0,126.49,126.47,11.45236883]
[1764566790225,3.0,126.49,126.47,3.5454471]
[1764566792206,0.62,126.48,126.46,2.3]
[1764566793638,0.62,126.48,126.42,7.90999377]
[1764566793929,3.5054471,126.48,126.44,2.8854471]
[1764566794125,0.62,126.48,126.46,2.8854471]
[1764566795120,0.62,126.48,126.45,0.66]
[1764566795314,8.52643703,126.48,126.45,2.8854471]
[1764566795623,0.62,126.48,126.45,3.5454471]
[1764566796524,0.62,126.48,126.45,11.45354656]
[1764566797036,8.52646343,126.48,126.45,10.79354656]
[1764566797221,8.52646343,126.48,126.45,11.45354656]
[1764566798021,8.52646343,126.48,126.45,8.56809946]
[1764566798332,8.52646343,126.48,126.45,11.45354656]
[1764566799113,8.52646343,126.48,126.46,2.8854471]
[1764566799308,3.0,126.49,126.46,11.45297692]
[1764566799514,3.62,126.49,126.47,2.8854471]
[1764566800631,3.0,126.49,126.48,2.8854471]
[1764566800823,3.0,126.49,126.48,3.5454471]
[1764566801024,3.0,126.49,126.48,0.66]
[1764566801236,3.0,126.49,126.48,2.8854471]
[1764566801432,7.90439806,126.52,126.48,3.5454471]
[1764566801613,3.5,126.51,126.49,2.8854471]
[1764566801814,4.12,126.51,126.49,2.8854471]
[1764566802333,3.5,126.51,126.48,2.8854471]
[1764566802539,0.62,126.5,126.48,2.8854471]
[1764566805945,12.02509195,126.51,126.48,2.8854471]
[1764566806150,12.02509195,126.51,126.48,3.5454471]
[1764566806643,11.40509195,126.51,126.49,3.5454471]
[1764566806844,11.40509195,126.51,126.49,2.8854471]
[1764566807920,12.02509195,126.51,126.49,2.8854471]
[1764566808331,12.02509195,126.51,126.48,11.45174048]
[1764566808529,11.40509195,126.51,126.48,10.79174048]
[1764566808737,12.02509195,126.51,126.48,10.79174048]
[1764566809133,0.62,126.5,126.47,3.5454471]
[1764566809528,3.5,126.51,126.49,2.8854471]
[1764566809729,3.5,126.51,126.5,2.8854471]
[1764566810933,3.5,126.51,126.49,3.5454471]
[1764566812342,3.5,126.51,126.5,2.8854471]
[1764566813449,3.5,126.51,126.49,11.45113136]
[1764566816535,3.5,126.51,126.5,2.8854471]
[1764566816937,7.90340493,126.53,126.5,3.5954471]
[1764566817145,11.40340493,126.53,126.51,3.5954471]
[1764566817453,12.02340493,126.53,126.51,2.8854471]
[1764566818754,3.5,126.53,126.52,3.5954471]
[1764566819331,3.5,126.55,126.52,3.5954471]
[1764566819534,3.5,126.55,126.53,2.8854471]
[1764566819858,4.12,126.55,126.53,2.8854471]
[1764566820032,3.5,126.55,126.53,2.8854471]
[1764566820229,3.5,126.55,126.54,2.8854471]
[1764566823341,3.5,126.55,126.53,3.5954471]
[1764566824057,3.5,126.55,126.53,0.71]
[1764566824245,3.5,126.55,126.53,3.5954471]
[1764566824656,3.5,126.55,126.53,0.71]
[1764566824957,3.5,126.55,126.53,3.5954471]
[1764566825556,3.5,126.55,126.53,0.71]
[1764566825761,3.5,126.55,126.53,3.5954471]
[1764566828139,0.62,126.59,126.54,3.5954471]
[1764566828360,3.5,126.58,126.56,2.8854471]
[1764566828763,4.12,126.58,126.55,3.5954471]
[1764566828945,4.12,126.58,126.56,2.8854471]
[1764566829459,12.02031135,126.58,126.56,2.8854471]
[1764566830167,12.02031135,126.58,126.55,0.71]
[1764566830460,12.02031135,126.58,126.56,2.8854471]
[1764566830665,12.02031135,126.58,126.54,7.90233124]
[1764566830851,12.02031135,126.58,126.55,3.5954471]
[1764566832465,12.02031135,126.58,126.55,0.71]
[1764566832673,12.02031135,126.58,126.55,5.21118961]
[1764566833676,12.02031135,126.58,126.56,4.50118961]
[1764566834149,12.02031135,126.58,126.55,5.21118961]
[1764566836655,11.40031135,126.58,126.51,38.36909528]
[1764566836860,0.62,126.57,126.54,4.50118961]
[1764566837458,31.77066685,126.58,126.55,0.71]
[1764566837668,36.27185646,126.58,126.55,0.71]
[1764566837871,0.62,126.57,126.54,5.21118961]
[1764566838677,7.90139064,126.56,126.54,4.50118961]
[1764566839252,7.90139064,126.56,126.54,5.21118961]
[1764566844687,7.90076637,126.57,126.55,0.71]
[1764566845475,8.52076637,126.57,126.54,5.17118961]
[1764566846574,8.52076637,126.57,126.55,4.50118961]
[1764566847276,3.5,126.56,126.55,4.50118961]
[1764566848882,3.5,126.56,126.54,0.67]
[1764566849074,3.5,126.56,126.54,5.17118961]